bitfinex-derivatives/quotes_ETHF0:USTF0_20250824
["timestamp","ask_amount","ask_price","bid_price","bid_amount"]
[1756026375354,20.26085919,4778.9,4778.8,0.41864]
[1756026376352,19.7284,4778.9,4778.8,0.41864]
[1756026377754,19.7284,4778.9,4778.8,0.64204]
[1756026378356,19.7284,4778.9,4778.8,0.41864]
[1756026378751,19.7284,4778.9,4778.8,0.64204]
[1756026379953,0.2983,4778.7,4778.6,0.41865]
[1756026380147,0.7404,4778.7,4778.0,0.2234]
[1756026380349,0.7404,4778.2,4778.1,0.60431835]
[1756026380649,0.7404,4778.2,4778.1,1.44041835]
[1756026380850,0.7404,4778.2,4778.1,1.79021835]
[1756026381250,0.7404,4778.2,4778.1,0.4187]
[1756026382254,19.40669,4778.3,4777.5,0.2366]
[1756026382255,0.5903,4777.9,4777.8,0.41872]
[1756026382460,0.7404,4777.9,4777.8,0.64212]
[1756026382650,0.7404,4777.9,4777.8,1.22852]
[1756026383051,0.7404,4777.9,4777.8,1.74892]
[1756026383249,19.7294,4777.9,4777.8,1.74892]
[1756026386858,0.2165,4778.3,4778.2,0.41869]
[1756026387162,19.5048,4778.3,4778.2,1.74889]
[1756026387461,19.7304,4778.3,4778.2,1.74889]
[1756026390361,19.7304,4778.3,4778.2,1.39909]
[1756026390751,19.7304,4778.3,4778.2,0.64209]
[1756026392463,19.7304,4778.3,4778.2,0.41869]
[1756026392764,19.7304,4778.3,4778.2,0.64209]
[1756026393264,19.7304,4778.3,4778.2,1.22849]
[1756026393466,19.7304,4778.3,4778.2,1.60459]
[1756026393763,19.7304,4778.3,4778.2,1.74889]
[1756026393962,0.7404,4778.3,4778.2,1.74889]
[1756026394358,0.5239,4778.3,4778.2,1.74889]
[1756026394564,19.5169,4778.3,4778.2,1.74889]
[1756026395662,19.7334,4778.3,4778.2,1.74889]
[1756026397765,0.7404,4778.3,4778.2,1.74889]
[1756026402963,0.2185,4778.2,4777.7,0.582]
[1756026403262,0.728,4777.8,4777.7,0.41873]
[1756026403665,0.728,4777.8,4777.7,0.65713]
[1756026403866,0.728,4777.8,4777.7,1.77663]
[1756026404256,0.5086,4777.8,4777.7,1.77663]
[1756026404463,0.5086,4778.1,4778.0,1.77661]
[1756026404667,0.1456,4778.1,4778.0,1.77661]
[1756026404968,19.2831,4778.3,4778.2,1.54699]
[1756026405163,19.5016,4778.3,4778.2,1.77659]
[1756026405670,0.5086,4778.3,4778.2,1.77659]
[1756026406168,0.728,4778.3,4778.2,1.77659]
[1756026407169,0.5086,4778.3,4778.2,1.77659]
[1756026410274,19.3571,4778.5,4778.4,1.77657]
[1756026410473,20.03047161,4778.5,4778.4,1.77657]
[1756026412575,20.24987161,4778.5,4778.4,1.77657]
[1756026414576,1.03747161,4778.5,4778.4,1.77657]
[1756026414776,19.81097161,4778.5,4778.4,1.77657]
[1756026414979,19.2821,4778.5,4778.4,1.77657]
[1756026416077,20.02955888,4778.5,4778.4,1.77657]
[1756026416375,20.0295703,4778.5,4778.4,1.77657]
[1756026416677,19.5006,4778.5,4778.4,1.77657]
[1756026416870,0.5086,4778.5,4778.4,1.77657]
[1756026418280,0.728,4778.5,4778.4,1.77657]
[1756026418979,19.72,4778.5,4778.4,1.77657]
[1756026420673,19.5006,4778.5,4778.4,1.77657]
[1756026420873,40.8,4780.0,4778.4,1.77657]
[1756026420874,0.5086,4778.8,4778.7,1.77655]
[1756026421174,0.5086,4779.1,4779.0,1.77652]
[1756026421377,1.03658354,4779.1,4779.0,1.77652]
[1756026423680,1.25598354,4779.1,4779.0,1.77652]
[1756026423875,20.24698354,4779.1,4779.0,0.65702]
[1756026424075,20.24698354,4779.1,4779.0,0.41862]
[1756026425180,0.4379,4779.0,4778.8,0.41864]
[1756026425389,0.728,4778.9,4778.8,0.41864]
[1756026425682,0.2901,4778.9,4778.6,0.41866]
[1756026425884,18.991,4779.1,4778.4,0.41867]
[1756026425885,0.728,4778.5,4778.4,0.41867]
[1756026426092,19.2811,4778.5,4778.2,0.41869]
[1756026426380,0.4379,4777.7,4777.6,0.2384]
[1756026426577,19.719,4777.7,4777.6,0.42279747]
[1756026427182,19.4996,4777.7,4777.6,1.54379747]
[1756026428581,19.4996,4777.7,4777.6,1.5437491]
[1756026428787,0.2901,4777.7,4777.6,1.5437491]
[1756026428982,18.991,4777.8,4777.7,1.76513]
[1756026429183,19.5238,4778.0,4777.9,0.94052]
[1756026429381,19.5238,4778.0,4777.9,1.76512]
[1756026429983,0.5328,4778.0,4777.9,1.76512]
[1756026433994,0.7521,4778.0,4777.9,1.76512]
[1756026434296,0.7521,4778.0,4777.9,1.94952081]
[1756026435100,0.7521,4778.0,4777.9,1.76512]
[1756026435501,0.7521,4778.0,4777.9,1.94953384]
[1756026437902,0.5328,4778.0,4777.9,1.94953384]
[1756026438303,0.7521,4778.0,4777.9,1.94953384]
[1756026438507,0.7521,4778.0,4777.9,1.94969769]
[1756026439104,0.7521,4778.0,4777.9,1.94969189]
[1756026439307,0.5328,4778.0,4777.9,1.94969189]
[1756026439807,0.7524,4778.0,4777.9,0.79742]
[1756026440102,0.7524,4778.0,4777.9,0.2326]
[1756026441100,0.7524,4778.0,4777.9,0.4662]
[1756026441699,0.7524,4778.0,4777.9,0.8246]
[1756026442102,0.7524,4778.0,4777.9,1.1898]
[1756026442708,0.7524,4778.0,4777.9,1.3464]
[1756026443011,0.5328,4778.0,4777.9,1.3464]
[1756026445010,0.7524,4778.0,4777.9,1.3464]
[1756026445402,0.5328,4778.0,4777.9,1.3464]
[1756026448005,0.3066,4778.0,4777.9,1.3464]
[1756026448811,0.5328,4778.6,4778.5,0.5218]
[1756026449111,1.06026195,4778.6,4778.5,1.3464]
[1756026454015,19.5248,4778.6,4778.5,1.3464]
[1756026454216,20.04980326,4778.6,4778.5,1.3464]
[1756026454607,19.82360326,4778.6,4778.5,1.3464]
[1756026454809,19.2986,4778.6,4778.5,1.3464]
[1756026455410,19.1388,4778.6,4778.5,1.3464]
[1756026456317,0.5328,4778.9,4778.8,0.5218]
[1756026456516,20.04981454,4778.9,4778.8,1.3464]
[1756026456819,20.04981454,4778.9,4778.8,1.76504]
[1756026457311,0.83161454,4778.9,4778.8,1.76504]
[1756026457516,19.1388,4778.9,4778.8,1.76504]
[1756026460018,0.1468,4778.9,4778.8,1.76504]
[1756026461210,0.3803,4778.9,4778.8,1.76504]
[1756026462015,0.7469,4778.9,4778.8,1.24324]
[1756026462319,0.7469,4778.9,4778.8,1.77274]
[1756026463715,1.27135317,4778.9,4778.8,1.77274]
[1756026463913,20.26235317,4778.9,4778.8,1.77274]
[1756026467323,19.7379,4778.9,4778.8,1.77274]
[1756026469519,19.7379,4778.9,4778.8,0.41864]
[1756026469719,20.26218981,4778.9,4778.8,0.41864]
[1756026475121,0.41866,4778.5,4778.3,0.41868]
[1756026475322,0.7543,4778.3,4778.2,0.41869]
[1756026475726,0.7543,4778.1,4778.0,0.2243]
[1756026475929,0.7543,4778.0,4777.9,0.41872]
[1756026476128,0.7543,4778.0,4777.9,0.64302]
[1756026476324,0.7543,4778.0,4777.9,0.41872]
[1756026476729,1.17302,4778.0,4777.6,0.2243]
[1756026476927,0.7543,4777.9,4777.8,0.41872]
[1756026477129,0.7543,4777.9,4777.8,0.64302]
[1756026477528,0.7543,4777.9,4777.8,0.85972]
[1756026477728,0.7543,4777.9,4777.8,1.21322]
[1756026479739,0.7543,4777.9,4777.8,1.59372]
[1756026479933,0.7543,4777.9,4777.8,1.74272]
[1756026482639,0.5348,4777.9,4777.8,1.74272]
[1756026483437,0.79937,4777.3,4777.2,0.2243]
[1756026483638,0.72008,4777.2,4777.1,0.2243]
[1756026483935,0.72008,4777.2,4777.1,1.58466049]
[1756026483936,0.82957458,4777.2,4777.1,1.58466049]
[1756026484237,0.5348,4777.2,4777.1,1.58466652]
[1756026484439,0.3013,4777.8,4777.7,0.65163]
[1756026484638,0.3013,4777.8,4777.7,1.74273]
[1756026484940,30.151,4778.2,4778.1,1.7427]
[1756026485242,19.038,4778.2,4778.1,2.00307511]
[1756026485635,19.7923,4778.2,4778.1,1.58437511]
[1756026485839,19.7923,4778.2,4778.1,0.48467511]
[1756026486039,19.7923,4778.2,4778.1,0.26037511]
[1756026486741,0.3167,4777.8,4777.7,0.64303]
[1756026486940,0.7582,4777.8,4777.7,0.90339841]
[1756026487142,0.7582,4777.8,4777.7,2.00669841]
[1756026487439,0.539,4777.8,4777.7,2.00668328]
[1756026487639,0.3167,4777.8,4777.7,2.00668328]
[1756026487941,0.539,4777.8,4777.7,2.00668328]
[1756026488342,0.539,4777.8,4777.7,2.00668105]
[1756026488642,0.7582,4777.8,4777.7,2.00668105]
[1756026488843,0.7582,4777.8,4777.7,0.48465105]
[1756026489141,0.7582,4777.5,4777.4,0.87696]
[1756026489337,19.8162,4777.5,4777.4,1.84740522]
[1756026489543,19.8162,4777.5,4777.4,1.99420522]
[1756026489843,19.597,4777.5,4777.4,1.99420522]
[1756026490742,19.597,4777.5,4777.4,0.26044522]
[1756026490743,19.8162,4777.5,4777.4,0.26044522]
[1756026491337,0.3167,4777.1,4777.0,0.65759]
[1756026491536,0.7582,4777.1,4777.0,0.898596]
[1756026491738,40.8,4778.0,4777.3,0.41876]
[1756026491941,0.539,4777.7,4777.6,1.315]
[1756026492133,1.0666116,4777.7,4777.6,1.315]
[1756026493135,1.2858116,4777.7,4777.6,1.315]
[1756026493434,0.7582,4777.7,4777.6,1.315]
[1756026494841,0.539,4777.7,4777.6,1.315]
[1756026495638,19.62,4777.7,4777.6,1.315]
[1756026495843,19.8392,4777.7,4777.6,1.315]
[1756026496446,19.8392,4777.7,4777.6,0.2194]
[1756026496650,1.17696,4777.4,4777.3,0.2194]
[1756026496949,1.17696,4777.4,4777.3,0.47993997]
[1756026497346,1.17696,4777.4,4777.3,0.47997415]
[1756026498050,0.7582,4777.4,4777.3,1.04957415]
[1756026498239,0.7582,4777.4,4777.3,1.57557415]
[1756026498644,0.7582,4777.4,4777.3,0.47997415]
[1756026499147,0.7582,4777.4,4777.3,0.71877415]
[1756026499349,19.11744095,4777.7,4777.3,0.71877415]
[1756026499350,0.539,4777.7,4777.6,0.94474]
[1756026499551,19.647,4777.7,4777.6,1.73374]
[1756026499752,20.39401915,4777.7,4777.6,1.73374]
[1756026499951,20.39401915,4777.7,4777.6,0.2194]
[1756026500352,20.39401915,4777.7,4777.6,1.315]
[1756026501355,0.7582,4777.4,4777.3,0.8374]
[1756026501555,0.7582,4777.4,4777.3,1.57588288]
[1756026502354,0.7582,4777.4,4777.3,1.24508288]
[1756026502759,0.7582,4777.4,4777.3,1.57588288]
[1756026503757,1.28642091,4777.4,4777.3,1.57588288]
[1756026504358,1.28642091,4777.4,4777.3,0.26088288]
[1756026505764,0.7355,4777.0,4776.9,0.2194]
[1756026505963,20.81922091,4777.0,4776.9,0.26117923]
[1756026506266,0.73552,4776.7,4776.6,0.2194]
[1756026506466,1.70524091,4776.7,4776.6,0.4582]
[1756026506667,1.70524091,4776.7,4776.6,0.2194]
[1756026507261,0.41885,4776.4,4776.2,0.64406]
[1756026507456,1.17705,4776.4,4776.3,0.789]
[1756026507668,20.29505,4776.4,4776.3,1.1682]
[1756026507862,20.29505,4776.4,4776.3,1.315]
[1756026508762,19.8762,4776.4,4776.3,1.315]
[1756026509569,20.40432823,4776.4,4776.3,0.2194]
[1756026509861,0.3167,4776.1,4776.0,1.58708]
[1756026510069,0.7587,4776.1,4776.0,1.58708]
[1756026510459,0.7587,4776.1,4776.0,1.1682]
[1756026510659,0.7587,4776.1,4776.0,0.4446]
[1756026511564,0.7587,4776.1,4776.0,0.6834]
[1756026511765,0.7587,4776.1,4776.0,1.315]
[1756026511967,0.539,4776.1,4776.0,1.315]
[1756026513463,19.655,4776.1,4776.0,1.315]
[1756026515268,19.8747,4776.1,4776.0,1.315]
[1756026516273,19.655,4776.1,4776.0,1.315]
[1756026517173,19.8747,4776.1,4776.0,1.315]
[1756026518168,19.8747,4776.1,4776.0,0.2194]
[1756026518467,0.3142,4775.9,4775.6,0.99241]
[1756026518675,1.18089,4775.9,4775.8,0.2376]
[1756026519070,0.3142,4775.7,4775.6,0.8111]
[1756026519262,19.87,4775.7,4775.6,0.8111]
[1756026519776,19.869,4775.7,4775.6,0.8111]
[1756026520674,19.869,4775.7,4775.6,1.179]
[1756026520878,0.762,4775.7,4775.6,1.3246]
[1756026521074,19.868,4775.7,4775.6,1.3246]
[1756026521270,19.868,4775.7,4775.6,0.2376]
[1756026521667,19.868,4775.7,4775.6,1.3246]
[1756026522572,19.6483,4775.7,4775.6,1.3246]
[1756026523372,19.6443,4775.7,4775.6,1.3246]
[1756026524280,0.762,4775.7,4775.6,1.3246]
[1756026524478,19.862,4775.7,4775.6,1.3246]
[1756026525269,19.862,4775.7,4775.6,0.9853]
[1756026525476,20.28092,4775.7,4775.5,0.41892]
[1756026525681,0.762,4775.6,4775.5,0.41892]
[1756026526182,0.762,4775.6,4775.5,1.44892]
[1756026526770,0.762,4775.6,4775.5,1.59792]
[1756026526976,0.762,4775.6,4775.5,0.8397]
[1756026527172,0.762,4775.6,4775.5,1.3246]
[1756026530384,0.5423,4775.6,4775.5,1.3246]
[1756026531389,19.6303,4775.6,4775.5,1.3246]
[1756026532087,19.85,4775.6,4775.5,1.3246]
[1756026533484,0.762,4775.6,4775.5,1.3246]
[1756026533681,19.846,4775.6,4775.5,1.3246]
[1756026534186,19.846,4775.6,4775.5,0.2376]
[1756026534388,0.762,4775.4,4775.3,0.99584]
[1756026534578,0.762,4775.4,4775.3,1.59794]
[1756026534779,0.762,4775.4,4775.3,1.3246]
[1756026535084,1.18096,4775.1,4775.0,1.59797]
[1756026535286,20.26196,4775.1,4775.0,1.3246]
[1756026536084,0.762,4774.8,4774.7,1.598]
[1756026536387,19.846,4774.8,4774.7,1.7436]
[1756026536580,19.846,4774.8,4774.7,1.3246]
[1756026537287,19.6263,4774.8,4774.7,1.3246]
[1756026537786,0.5423,4775.4,4775.3,1.74354]
[1756026537982,20.15553042,4775.4,4775.3,1.74354]
[1756026538185,20.37523042,4775.4,4775.3,0.4718]
[1756026538385,20.37523042,4775.4,4775.3,0.2376]
[1756026538886,20.37523042,4775.4,4775.3,1.179]
[1756026539085,20.37523042,4775.4,4775.3,1.3246]
[1756026540192,20.37523042,4775.4,4775.3,0.6055]
[1756026540392,20.37523042,4775.4,4775.3,0.2376]
[1756026540588,1.07153042,4775.4,4775.3,1.3246]
[1756026540796,20.15353042,4775.4,4775.3,1.3246]
[1756026541290,20.37323042,4775.4,4775.3,1.3246]
[1756026541789,0.41898,4774.9,4774.7,0.41899]
[1756026541985,19.6149,4774.8,4774.7,1.50599]
[1756026542189,19.6149,4774.8,4774.7,1.74359]
[1756026542589,19.843,4774.8,4774.7,1.3246]
[1756026542795,19.081,4774.8,4774.7,1.3246]
[1756026542990,19.2367,4774.8,4774.7,1.3246]
[1756026543382,19.6233,4774.8,4774.7,1.3246]
[1756026544785,19.843,4774.8,4774.7,1.3246]
[1756026545995,19.6233,4774.8,4774.7,1.3246]
[1756026546997,19.8422,4774.8,4774.7,1.3246]
[1756026547395,19.6233,4774.8,4774.7,1.3246]
[1756026548196,19.8422,4774.8,4774.7,1.3246]
[1756026548695,19.6233,4774.8,4774.7,1.3246]
[1756026551899,19.8422,4774.8,4774.7,1.3246]
[1756026552591,19.8422,4774.8,4774.7,0.2376]
[1756026552995,19.8422,4774.8,4774.6,0.419]
[1756026553190,19.81419,4774.8,4774.4,0.7886]
[1756026553390,0.7516,4774.7,4774.6,0.419]
[1756026553796,0.7516,4774.7,4774.6,0.6531]
[1756026555202,0.7516,4774.7,4774.6,0.878]
[1756026555401,0.41902,4774.5,4774.4,0.41902]
[1756026555604,0.7516,4774.5,4774.4,0.87802]
[1756026555798,0.7516,4774.5,4774.4,1.76202]
[1756026556905,0.7516,4774.5,4774.4,1.343]
[1756026557101,0.7516,4774.5,4774.4,1.1861]
[1756026557302,0.7516,4774.5,4774.4,1.343]
[1756026559305,0.7516,4774.5,4774.4,0.2341]
[1756026559505,1.28370851,4774.5,4774.4,0.2341]
[1756026559708,1.28370851,4774.5,4774.4,1.1861]
[1756026560102,1.28370851,4774.5,4774.4,1.343]
[1756026560509,1.28370851,4774.5,4774.4,1.61152726]
[1756026563713,1.28370851,4774.5,4774.4,1.45462726]
[1756026563909,1.28370851,4774.5,4774.4,1.61152726]
[1756026564715,1.28370851,4774.5,4774.4,1.343]
[1756026564914,1.28370851,4774.5,4774.4,1.61163662]
[1756026565127,1.28370851,4774.5,4774.4,0.26863662]
[1756026566218,0.3061,4774.2,4774.1,0.09635223]
[1756026566421,20.33970851,4774.2,4774.1,0.09635223]
[1756026567110,1.70274851,4774.2,4774.1,0.09635223]
[1756026567314,20.75674851,4774.2,4774.1,0.09635223]
[1756026569812,20.76004851,4774.2,4774.1,0.09635223]
[1756026570013,0.41909,4773.6,4773.5,0.2341]
[1756026570217,19.77919,4773.6,4773.5,0.2341]
[1756026570418,20.22699,4773.6,4773.5,0.7886]
[1756026572525,20.22699,4773.6,4773.5,1.343]
[1756026573520,20.22699,4773.6,4773.1,0.97363]
[1756026573521,0.41912,4773.3,4773.1,0.97363]
[1756026573721,19.8099,4773.2,4773.1,0.97353]
[1756026573927,19.588,4773.2,4773.1,0.97353]
[1756026574127,19.3594,4773.2,4773.1,1.76213]
[1756026574324,19.3581,4773.2,4773.1,1.76213]
[1756026575320,0.3745,4773.5,4773.4,1.76211]
[1756026575522,19.583,4773.5,4773.4,1.76211]
[1756026575821,19.8049,4773.5,4773.4,1.76211]
[1756026576119,0.7559,4773.5,4773.4,1.76211]
[1756026576321,19.8059,4773.5,4773.4,1.76211]
[1756026577423,19.586,4773.5,4773.4,1.76211]
[1756026579415,19.8053,4773.5,4773.4,0.65321]
[1756026579825,19.8053,4773.5,4773.4,0.41911]
[1756026580016,19.8053,4773.5,4773.4,0.65511]
[1756026580725,19.8053,4773.5,4773.4,1.62281]
[1756026581427,19.8053,4773.5,4773.4,1.76921]
[1756026584124,19.7943,4773.5,4773.4,1.76921]
[1756026584620,0.1455,4773.1,4773.0,0.3798]
[1756026584818,0.744,4773.0,4772.9,0.65515]
[1756026585019,0.41916,4772.9,4772.8,0.2297]
[1756026585226,0.5891,4772.7,4772.6,1.00278]
[1756026585425,19.785,4772.7,4772.6,1.00278]
[1756026585727,19.785,4772.7,4772.6,1.65522058]
[1756026585929,19.785,4772.7,4772.6,1.07422058]
[1756026586226,19.785,4772.7,4772.6,0.92352058]
[1756026586425,19.785,4772.7,4772.3,0.5836]
[1756026586426,0.41918,4772.6,4772.3,0.8196]
[1756026586631,0.744,4772.4,4772.3,0.5836]
[1756026586834,19.787,4772.4,4772.3,1.08530399]
[1756026587024,19.787,4772.4,4772.3,1.32130399]
[1756026587225,0.1455,4771.6,4771.5,0.236]
[1756026587420,19.4128,4771.6,4771.5,0.236]
[1756026587619,19.4128,4771.6,4771.5,1.3501]
[1756026588325,19.4128,4771.6,4769.8,1.87710761]
[1756026588326,0.1455,4769.9,4769.8,1.64340761]
[1756026588526,0.1455,4769.9,4768.8,0.236]
[1756026588527,19.404,4769.9,4768.8,0.236]
[1756026588824,71.51716224,4769.8,4768.4,0.236]
[1756026589019,0.53516224,4769.7,4766.6,0.0209]
[1756026589223,0.41953,4768.7,4767.6,0.41962]
[1756026589419,19.84153,4768.6,4767.7,0.3539]
[1756026589625,19.421,4768.5,4767.9,0.92419]
[1756026589829,19.421,4768.5,4768.4,0.1507]
[1756026590029,0.4195,4769.0,4768.4,0.3867]
[1756026590224,0.1549,4768.5,4768.4,0.3798]
[1756026590431,0.3903,4768.5,4768.4,0.6095]
[1756026591027,19.8053,4768.5,4768.4,0.6095]
[1756026591332,0.2354,4768.4,4768.0,0.2297]
[1756026591526,0.1549,4768.1,4768.0,0.6095]
[1756026591830,0.3903,4768.1,4768.0,0.6095]
[1756026592036,19.8043,4768.1,4768.0,1.1141]
[1756026592236,19.8043,4768.1,4768.0,1.3501]
[1756026592934,19.8023,4768.1,4768.0,1.3501]
[1756026593631,19.8023,4768.1,4768.0,0.7602]
[1756026594029,19.8023,4768.1,4766.5,1.04929]
[1756026594030,0.1549,4767.2,4767.1,0.7665]
[1756026594726,0.1549,4767.2,4767.1,1.3501]
[1756026594926,19.8543,4767.5,4767.4,1.76974]
[1756026596435,0.3903,4767.5,4767.4,1.76974]
[1756026596631,0.1549,4767.5,4767.4,1.76974]
[1756026598530,40.8,4769.0,4767.8,0.8196]
[1756026598731,0.3903,4768.4,4768.3,1.3501]
[1756026599137,20.6798,4768.4,4768.3,0.8501]
[1756026599341,1.2268,4768.4,4768.3,1.2299]
[1756026599840,20.6768,4768.4,4768.3,1.2299]
[1756026600239,1.2268,4768.4,4768.3,1.64946]
[1756026600433,0.1549,4768.4,4768.3,1.64946]
[1756026601031,0.7579,4769.2,4769.1,0.5305]
[1756026601342,21.26114085,4769.2,4769.1,0.5305]
[1756026601938,1.81114085,4769.2,4769.1,0.5305]
[1756026602136,1.81114085,4769.2,4768.8,0.8196]
[1756026602337,1.0025,4768.9,4768.8,0.8844]
[1756026602539,1.81114085,4768.9,4768.8,0.8844]
[1756026602843,1.81114085,4768.9,4768.8,1.3501]
[1756026603039,1.57574085,4768.9,4768.8,1.3501]
[1756026603242,19.5885,4769.0,4768.9,1.3501]
[1756026603444,1.2268,4769.0,4768.9,1.3501]
[1756026603939,0.7671,4769.0,4768.9,1.3501]
[1756026604249,19.6059,4769.3,4769.2,1.3501]
[1756026604546,1.81138641,4769.3,4769.2,1.3501]
[1756026604845,0.88498641,4769.3,4769.2,1.3501]
[1756026606543,0.73948641,4769.3,4769.2,1.3501]
[1756026606851,0.7786,4770.0,4769.9,0.5268]
[1756026607052,21.26377419,4770.0,4769.9,1.3184]
[1756026607350,1.82677419,4770.0,4769.9,1.3184]
[1756026607542,21.27077419,4770.0,4769.9,1.3184]
[1756026607940,1.59647419,4770.0,4769.9,1.3184]
[1756026608140,20.33197419,4770.0,4769.9,1.3184]
[1756026608344,21.26677419,4770.0,4769.9,1.3184]
[1756026609244,0.89197419,4770.0,4769.9,1.3184]
[1756026609447,0.73337419,4770.0,4769.9,1.3184]
[1756026609749,0.58547419,4770.0,4769.9,1.3184]
[1756026610551,1.82677419,4770.0,4769.9,1.3184]
[1756026611354,1.59647419,4770.0,4769.9,1.3184]
[1756026612452,30.21,4770.5,4769.9,1.3184]
[1756026612453,1.41512907,4771.7,4771.1,0.7604]
[1756026612747,0.7745,4771.4,4771.3,1.0941]
[1756026612953,0.468,4771.3,4771.0,0.7999]
[1756026613150,0.3065,4770.8,4770.7,0.2326]
[1756026613353,0.3065,4770.8,4770.5,0.2326]
[1756026613650,0.7745,4770.6,4770.5,0.2326]
[1756026613843,20.2495,4770.6,4770.5,0.2326]
[1756026614346,20.2495,4770.6,4770.5,0.65197]
[1756026615250,20.2495,4770.6,4770.5,0.2326]
[1756026616042,0.3782,4770.6,4770.5,1.3184]
[1756026616345,0.7745,4771.0,4770.9,0.94613]
[1756026616650,0.7745,4771.0,4770.9,1.73773]
[1756026616840,0.5368,4771.0,4770.9,1.73773]
[1756026617251,0.7745,4771.0,4770.9,1.73773]
[1756026618850,0.7745,4771.0,4770.9,1.51343]
[1756026619846,0.7745,4771.0,4770.9,1.73773]
[1756026620154,0.2377,4771.3,4771.2,0.41931]
[1756026620349,20.2215,4771.7,4771.6,1.73767]
[1756026620547,19.9838,4771.7,4771.6,1.73767]
[1756026620948,0.5368,4771.7,4771.6,1.73767]
[1756026621250,0.7745,4771.7,4771.6,0.41927]
[1756026621647,0.7745,4771.7,4771.6,0.65187]
[1756026622651,0.7745,4771.7,4771.6,1.13257]
[1756026622861,19.5939,4771.7,4771.6,1.73767]
[1756026623249,19.8242,4771.7,4771.6,1.73767]
[1756026623558,0.5368,4771.7,4771.6,1.73767]
[1756026623753,0.7745,4771.7,4771.6,1.73767]
[1756026623951,0.7745,4771.7,4771.6,1.51337]
[1756026624558,1.3422958,4771.7,4771.6,1.51337]
[1756026625055,20.0157958,4771.7,4771.6,1.73767]
[1756026625251,19.448,4771.7,4771.6,1.73767]
[1756026625455,19.448,4771.7,4771.6,1.27977]
[1756026625456,20.79037642,4771.7,4771.6,1.27977]
[1756026626251,20.79037642,4771.7,4771.6,1.51337]
[1756026626960,0.7745,4771.7,4771.6,1.73767]
[1756026627154,20.2275,4771.7,4771.6,1.73767]
[1756026627351,20.2265,4771.7,4771.6,1.73767]
[1756026627552,30.21,4772.1,4771.6,1.73767]
[1756026627553,30.678,4772.1,4772.0,1.73764]
[1756026627857,50.69720028,4772.1,4772.0,1.73764]
[1756026628762,50.69720028,4772.1,4772.0,1.51334]
[1756026629452,31.24620028,4772.1,4772.0,1.51334]
[1756026629755,50.69520028,4772.1,4772.0,1.51334]
[1756026630555,31.24620028,4772.1,4772.0,1.51334]
[1756026630756,50.68620028,4772.1,4772.0,1.51334]
[1756026631352,31.24620028,4772.1,4772.0,1.51334]
[1756026631652,50.69520028,4772.1,4772.0,1.27974]
[1756026631854,50.69520028,4772.1,4772.0,1.13274]
[1756026632460,31.24620028,4772.1,4772.0,1.13274]
[1756026632659,50.69020028,4772.1,4772.0,1.51334]
[1756026633857,31.24620028,4772.1,4772.0,1.51334]
[1756026634161,50.68520028,4772.1,4772.0,1.51334]
[1756026634558,31.24620028,4772.1,4772.0,1.73764]
[1756026634750,0.56820028,4772.1,4772.0,1.73764]
[1756026635058,40.8,4773.8,4772.0,1.73764]
[1756026635059,0.7745,4772.8,4772.7,1.73757]
[1756026635260,20.30189774,4772.8,4772.7,1.73757]
[1756026635763,20.76989774,4772.8,4772.7,1.73757]
[1756026636661,1.33689774,4772.8,4772.7,1.73757]
[1756026636962,20.76889774,4772.8,4772.7,1.73757]
[1756026638650,20.76889774,4772.8,4772.7,0.98547]
[1756026639067,20.76889774,4772.8,4772.7,0.65177]
[1756026639565,20.76889774,4772.8,4772.7,0.41917]
[1756026639860,0.4477,4772.7,4771.8,1.28835]
[1756026640066,0.7415,4772.4,4772.3,0.4192]
[1756026640265,20.72389774,4772.4,4772.3,0.4192]
[1756026641263,1.30389774,4772.4,4772.3,0.4192]
[1756026641463,20.72289774,4772.4,4772.3,0.4192]
[1756026642867,0.2938,4771.6,4771.5,0.65949]
[1756026643161,20.1575,4771.6,4771.5,0.41929]
[1756026643368,20.71989774,4771.6,4771.5,0.65949]
[1756026643568,20.71989774,4771.6,4771.5,1.00349]
[1756026649473,1.30389774,4771.6,4771.5,1.00349]
[1756026649968,20.68789774,4771.6,4771.5,1.74779]
[1756026651169,20.68789774,4771.6,4771.5,1.15419]
[1756026651375,20.68789774,4771.6,4771.5,1.00349]
[1756026652282,20.68789774,4771.6,4771.5,0.65949]
[1756026652482,20.68789774,4771.6,4771.5,1.00349]
[1756026652781,20.68789774,4771.6,4771.5,1.15419]
[1756026653380,0.33806774,4771.6,4771.5,1.74779]
[1756026653684,0.2938,4772.7,4772.6,1.74769]
[1756026653887,19.6698,4772.7,4772.6,1.74769]
[1756026654086,19.8888,4772.7,4772.6,1.74769]
[1756026654486,19.8898,4772.7,4772.6,1.74769]
[1756026655484,20.1185,4772.7,4772.6,1.74769]
[1756026655685,20.1185,4772.7,4772.6,1.52479]
[1756026655884,20.1185,4772.7,4772.6,1.37399]
[1756026657689,0.6115,4773.2,4773.1,0.56995]
[1756026657993,19.7508,4773.2,4773.1,1.74765]
[1756026658186,19.9795,4773.2,4773.1,1.74765]
[1756026658387,0.8305,4773.2,4773.1,1.74765]
[1756026658587,0.6018,4773.2,4773.1,1.74765]
[1756026660392,0.8305,4773.2,4773.1,1.74765]
[1756026660687,0.8305,4773.2,4773.1,1.52475]
[1756026660890,0.8305,4773.2,4773.1,0.41915]
[1756026661092,0.2938,4772.6,4772.4,0.8071]
[1756026661293,0.7415,4772.5,4772.4,0.41921]
[1756026661586,20.1025,4772.5,4772.4,0.41921]
[1756026663294,0.7415,4771.8,4771.7,0.78987]